{"text_format":"1","workbook":"xlsx","n_sheets":1,"sheets":["PRICE BID -15"],"not_rendered":{"charts":0,"images":0,"macros":1,"external_links":1,"defined_names":0,"comments":0,"pivot_tables":0},"unopened":[],"bounds":{"document_bytes":16777216,"sheet_cells":100000,"rows_first":2000,"rows_last":500,"rows_between":2000,"halvings":0,"cell_chars":16384,"cell_head_chars":4096},"cells_cut":0,"cells_raw":0,"read":"whole","date_system":"1900"}

{"sheet":"PRICE BID -15","index":0,"n_rows":21,"n_cols":9,"rows_kept":21,"cut":false,"hidden":false,"merged":[[15,1,15,8],[16,1,16,8],[2,0,2,8],[0,0,0,8],[1,0,1,8],[3,0,3,8],[5,0,5,8],[13,2,13,8]]}
["BHARAT HEAVY ELECTRICALS LIMITED JHANSI"]
["FACTORY CIVIL DEPARTMENT"]
["Price bid "]
[{"$f":"'[1]New Bogie shop '!A4:I4","v":"NAME OF WORK: Epoxy flooring work in New Bogie Shop under Vande Bharat Project."}]
[null,null,null,null,null,"Date","18.10.2023"]
["Tender No. FCX/TW/24/15"]
["SL. Nos. ","Description   of work ","% Allocation (Item-wise)","Unit ","Quantity ","Rate (Rs) ","Amount(Rs) ","Rate per Unit (in Rs.)","Amount (in Rs.)"]
[1,"Dry Area Surface preparation : Removal of existing old coatings/paintings from concrete floor by using scarifying machines, sanders, scrubbing machines, wire brushes and other mechanical tools.Oil contaminated areas/oil soaked areas must be degreased with the help of universal degreaser or flame burning by mechanical, chemical or any other suitable means. Make entire area dust free and dry with the help of high capacity vacuum cleaner and hot air blowers. Then it should be washed thoroughly by solvent cleaning/detergent washing acid cleaning. This process must be repeated upto satisfaction of Engineer-in- charge to ensure permissible limit of moisture & oil content. (The area uder execution shall be baricaded and covered to protect outer area from dust).",{"$f":"G8/4766916","v":2.9222247675436278E-3},"Sqm",{"$f":"'[1]New Bogie shop '!H18","v":1393},{"$f":"'[1]CST budgetary '!I9","v":10},{"$f":"E8*F8","v":13930},{"$f":"ROUND(I8/E8,4)","v":0},{"$f":"C8*$I$13","v":0}]
[2,"Oil soaked area Surface preparation : Removal of existing old coatings/paintings from concrete floor by using scarifying machines, sanders, scrubbing machines, wire brushes and other mechanical tools.Oil contaminated areas/oil soaked areas must be degreased with the help of universal degreaser or flame burning by mechanical, chemical or any other suitable means. Make entire area dust free and dry with the help of high capacity vacuum cleaner and hot air blowers. Then it should be washed thoroughly by solvent cleaning/detergent washing acid cleaning. This process must be repeated upto satisfaction of Engineer-in- charge to ensure permissible limit of moisture & oil content. (The area uder execution shall be baricaded and covered to protect outer area from dust)",{"$f":"G9/4766916","v":3.5066697210523533E-3},"Sqm",{"$f":"'[1]New Bogie shop '!H23","v":1393},{"$f":"'[1]CST budgetary '!I10","v":12},{"$f":"E9*F9","v":16716},{"$f":"ROUND(I9/E9,4)","v":0},{"$f":"C9*$I$13","v":0}]
[3,"Repairing of cracks, erosion, crumbled joints, small size damages, pot holes, etc., in the concrete floor with fast setting epoxy resin based putty / mortar including cutting in regular shape etc. complete. Undulations ,if any, found in the existing floor has to be removed followed by filling with epoxy screed to the required thickness to bring the level within tolerance limits.",8.3701915452254666E-2,"Cum",{"$f":"'[1]New Bogie shop '!H28","v":4.2},{"$f":"'[1]CST budgetary '!I11","v":95000},399000,0,0]
[4,"Expansion joint edge must be checked and if required to be repaired up to correct width, clean all sorts of loose particles dust, oil, grease etc by means of vacuum cleaner, air blower and other mechanical tools. Then insert expanded polystyrene based backer rod (High density) of appropriate dimension i.e. around 30mm dia. for 25mm wide joint in the prepared expansion joint. Provide bond breaking tape on both sides of the joints and over the backer rod in the entire length of the joint. Apply compatible primer on both sides of expansion joint. Apply polysulphide based sealant in the joint after properly mixing the same with the help of mechanical stirrer and apply by means of polysulphide gun. After finishing the top surface, remove the tape all as per specification and direction. Expansion joint filling size 25mm width and 12.5 mm depth.",4.3046699375445261E-3,"metre",{"$f":"'[1]New Bogie shop '!H32","v":108},{"$f":"'[1]CST budgetary '!I12","v":190},20520,0,0]
[5,"Providing and laying 5mm thick high density/highly abrasion resistant epoxy resin floor based screed flooring (compressive strength not less than 50N/sqmm at 7 days flexural strength not less than 25N/sqmm at 7 days inclusive of average 1.5mm thick topping of self levelling epoxy flooring of approved colour (compressive strength not less than 50N/sqmm at 7 days and flexural strength not less than 20N/sqmm at 7 days) after application of one or more coats of compatible and appropriate epoxy primer on the prepared surface.",0.90556452012160482,"Sqm",{"$f":"'[1]New Bogie shop '!H36","v":2785},{"$f":"'[1]CST budgetary '!I13","v":1550},4316750,0,0]
[null,"Total ",{"$f":"SUM(C8:C12)","v":1},null,null,null,{"$f":"SUM(G8:G12)","v":4766916}]
[null,"In words ",{"$f":"rup(I13)","v":0}]
[null,"Note -GST extra as applicable"]
[null,"1. Bidder has to quote in above unlocked cell (I-13) only. Item rate shall be calculated automatically. Calculated item rates upto four  decimal points may be adjusted w.r.t. gross total amount and it shall be the itemwise final rate for  execution of contract and all other purposes."]
[null,"2. Quoted gross total amount should be considered only if quoted in this excel sheet and print out of this should only be considered for evaluation.  If Price is quoted in any other format other than the Excel Sheet enclosed to the NIT , the offer of the bidder  will be rejected."]
[]
[]
[]
[null,null,null,"(Signature and Seal of  Contractor  )"]